lending/lending_fUSD_20241120
["ID","MTS","AMOUNT","RATE_DAILY","PERIOD"]
[342810516,1732143186360,-500.0,0.00059451,120]
[342810517,1732143186371,-709.28,0.00059451,120]
[342810518,1732143186382,-569.41,0.00059451,120]
[342810519,1732143186393,-1489.09,0.00059451,120]
[342810520,1732143186403,-500.0,0.00059451,120]
[342810521,1732143186413,-1118.01,0.00059451,120]
[342810522,1732143186423,-500.0,0.00059451,120]
[342810523,1732143186433,-500.0,0.00059451,120]
[342810524,1732143186443,-562.17,0.00059451,120]
[342810525,1732143186453,-500.0,0.00059451,120]
[342810526,1732143186463,-516.5,0.00059451,120]
[342810527,1732143186474,-1042.13,0.00059451,120]
[342810528,1732143186484,-500.0,0.00059451,120]
[342810529,1732143186494,-733.47,0.00059451,120]
[342810530,1732143186503,-1033.25,0.00059451,120]
[342810531,1732143186513,-500.0,0.00059451,120]
[342810532,1732143186525,-1793.12,0.00059451,120]
[342810533,1732143186535,-861.7,0.00059451,120]
[342810534,1732143186545,-576.17,0.00059451,120]
[342810535,1732143186554,-500.0,0.00059451,120]
[342810536,1732143186563,-500.0,0.00059451,120]
[342810537,1732143186575,-500.0,0.00059451,120]
[342810538,1732143186585,-654.65,0.00059451,120]
[342810539,1732143186595,-500.0,0.00059451,120]
[342810540,1732143186604,-500.0,0.00059451,120]
[342810541,1732143186615,-557.25,0.00059451,120]
[342810542,1732143186625,-500.0,0.00059451,120]
[342810543,1732143186634,-500.0,0.00059451,120]
[342810544,1732143186644,-988.11,0.00059451,120]
[342810545,1732143186653,-1076.47,0.00059451,120]
[342810546,1732143186663,-500.0,0.00059451,120]
[342810547,1732143186672,-500.0,0.00059451,120]
[342810548,1732143186682,-500.0,0.00059452,120]
[342810549,1732143186691,-500.0,0.00059452,120]
[342810550,1732143186700,-949.28,0.00059452,120]
[342810551,1732143186709,-588.18,0.00059452,120]
[342810552,1732143186719,-216.87,0.00059452,7]
[342810553,1732143186730,-1647.84,0.00059452,120]
[342810554,1732143186740,-500.0,0.00059452,120]
[342810555,1732143186749,-672.22,0.00059452,120]
[342810556,1732143186758,-901.77,0.00059452,120]
[342810557,1732143186768,-749.97,0.00059452,120]
[342810558,1732143186778,-500.0,0.00059452,120]
[342810559,1732143186787,-1584.28,0.00059452,120]
[342810560,1732143186797,-698.15,0.00059452,120]
[342810561,1732143186806,-500.0,0.00059452,120]
[342810562,1732143186816,-151.0,0.00059452,120]
[342810563,1732143186825,-500.0,0.00059452,120]
[342810564,1732143186835,-151.0,0.00059452,120]
[342810565,1732143186844,-550.21,0.00059452,120]
[342810566,1732143186853,-838.1,0.00059452,120]
[342810567,1732143186864,-500.0,0.00059452,120]
[342810568,1732143186873,-678.26,0.00059452,120]
[342810569,1732143186883,-528.71,0.00059452,120]
[342810570,1732143186892,-577.89,0.00059452,120]
[342810571,1732143186902,-1058.89,0.00059452,120]
[342810572,1732143186912,-500.0,0.00059452,120]
[342810573,1732143186926,-516.05,0.00059452,120]
[342810574,1732143186935,-500.0,0.00059452,120]
[342810575,1732143186944,-1582.8,0.00059452,120]
[342810576,1732143186953,-512.91,0.00059452,120]
[342810577,1732143186962,-910.7,0.00059452,120]
[342810578,1732143186972,-500.0,0.00059452,120]
[342810579,1732143186982,-686.07,0.00059452,120]
[342810580,1732143186993,-718.84,0.00059452,120]
[342810581,1732143187002,-222.33833971,0.00059452,120]
[342810582,1732143187012,-566.64,0.00059452,120]
[342810583,1732143187022,-581.13,0.00059452,120]
[342810584,1732143187032,-558.19,0.00059452,120]
[342810585,1732143187041,-1275.31,0.00059452,120]
[342810586,1732143187051,-646.55,0.00059452,120]
[342810587,1732143187061,-521.3184421,0.00059452,120]
[342810588,1732143187071,-889.52,0.00059452,120]
[342810589,1732143187081,-1844.67,0.00059452,120]
[342810590,1732143187091,-1345.16,0.00059452,120]
[342810591,1732143187101,-1354.36,0.00059452,120]
[342810592,1732143187111,-1126.54,0.00059452,120]
[342810593,1732143187120,-810.54,0.00059452,120]
[342810594,1732143187130,-1630.49,0.00059452,120]
[342810595,1732143187139,-1539.37,0.00059452,120]
[342810596,1732143187149,-1061.11,0.00059452,120]
[342810597,1732143187159,-616.53,0.00059452,120]
[342810598,1732143187168,-1163.7,0.00059452,120]
[342810599,1732143187177,-1697.48,0.00059452,120]
[342810600,1732143187187,-768.83,0.00059452,120]
[342810601,1732143187196,-1494.04,0.00059452,120]
[342810602,1732143187206,-583.76,0.00059452,120]
[342810603,1732143187216,-500.0,0.00059452,120]
[342810604,1732143187225,-1417.12,0.00059452,120]
[342810605,1732143187236,-514.86,0.00059452,120]
[342810606,1732143187246,-580.28,0.00059452,120]
[342810607,1732143187256,-625.85,0.00059452,120]
[342810608,1732143187265,-500.0,0.00059452,120]
[342810609,1732143187275,-1642.42,0.00059452,7]
[342810610,1732143187285,-835.63,0.00059452,120]
[342810611,1732143187295,-1168.69,0.00059452,120]
[342810612,1732143187304,-500.0,0.00059452,120]
[342810613,1732143187315,-785.67,0.00059452,120]
[342810614,1732143187324,-526.48,0.00059452,120]
[342810615,1732143187334,-1791.8,0.00059452,120]
[342810616,1732143187345,-500.0,0.00059452,120]
[342810617,1732143187355,-764.29,0.00059452,120]
[342810618,1732143187365,-937.69,0.00059452,120]
[342810619,1732143187375,-830.14,0.00059452,120]
[342810620,1732143187384,-500.0,0.00059452,58]
[342810621,1732143187394,-1926.82,0.00059452,120]
[342810622,1732143187404,-513.97,0.00059452,120]
[342810623,1732143187414,-1258.94,0.00059452,120]
[342810624,1732143187424,-615.91,0.00059452,120]
[342810625,1732143187434,-739.53,0.00059452,120]
[342810626,1732143187443,-2364.09,0.00059452,120]
[342810627,1732143187454,-1516.8,0.00059452,120]
[342810628,1732143187464,-644.03,0.00059452,120]
[342810629,1732143187473,-1222.69,0.00059452,120]
[342810630,1732143187485,-2792.61,0.00059452,120]
[342810631,1732143187495,-689.07,0.00059452,120]
[342810632,1732143187504,-598.66,0.00059452,120]
[342810633,1732143187514,-696.8,0.00059452,120]
[342810634,1732143187651,-517.71,0.00059452,120]
[342810635,1732143187661,-670.6,0.00059452,120]
[342810636,1732143187671,-1622.41,0.00059452,120]
[342810637,1732143187681,-732.47,0.00059452,120]
[342810638,1732143187691,-500.0,0.00059452,120]
[342810639,1732143187700,-500.0,0.00059452,120]
[342810640,1732143187710,-3752.95,0.00059452,120]
[342810641,1732143187720,-694.86,0.00059452,120]
[342810642,1732143187730,-527.72,0.00059452,120]
[342810643,1732143187740,-151.0,0.00059452,120]
[342810644,1732143187749,-151.0,0.00059452,120]
[342810645,1732143187759,-151.0,0.00059452,120]
[342810646,1732143187770,-151.0,0.00059452,120]
[342810647,1732143187780,-2754.45,0.00059452,120]
[342810648,1732143187791,-414.2355824,0.00059452,120]
[342810649,1732143187801,-750.37,0.00059452,120]
[342810650,1732143187811,-1552.42,0.00059452,120]
[342810651,1732143187823,-777.0,0.00059452,120]
[342810652,1732143187834,-151.0,0.00059452,120]
[342810653,1732143187844,-586.88,0.00059452,120]
[342810654,1732143187854,-151.0,0.00059452,120]
[342810655,1732143187864,-151.0,0.00059452,120]
[342810656,1732143187874,-151.0,0.00059452,120]
[342810657,1732143187884,-546.79,0.00059452,120]
[342810658,1732143187894,-1410.35,0.00059452,120]
[342810659,1732143187904,-151.0,0.00059452,120]
[342810660,1732143187915,-151.0,0.00059452,120]
[342810661,1732143187928,-204.293424,0.00059452,120]
[342810662,1732143187937,-622.81,0.00059452,120]
[342810663,1732143187947,-1078.42,0.00059452,120]
[342810664,1732143187956,-2348.91,0.00059452,120]
[342810665,1732143187967,-1803.88,0.00059452,120]
[342810666,1732143187976,-875.42,0.00059452,120]
[342810667,1732143187987,-908.45,0.00059452,120]
[342810668,1732143187998,-643.69,0.00059452,120]
[342810669,1732143188008,-1745.98,0.00059452,120]
[342810670,1732143188018,-659.6,0.00059452,120]
[342810671,1732143188027,-1212.54,0.00059452,120]
[342810672,1732143188038,-155.09924916,0.00059452,120]
[342810673,1732143188047,-2042.25,0.00059452,120]
[342810674,1732143188057,-151.0,0.00059452,120]
[342810675,1732143188067,-828.06,0.00059452,120]
[342810676,1732143188076,-646.63,0.00059452,120]
[342810677,1732143188087,-806.31,0.00059452,120]
[342810678,1732143188097,-1287.88,0.00059452,120]
[342810679,1732143188106,-1410.77,0.00059452,120]
[342810680,1732143188115,-623.91,0.00059452,120]
[342810681,1732143188124,-766.21,0.00059452,120]
[342810682,1732143188134,-1000.52,0.00059452,120]
[342810683,1732143188144,-500.0,0.00059452,120]
[342810684,1732143188154,-1013.49,0.00059452,120]
[342810685,1732143188163,-811.56,0.00059452,120]
[342810686,1732143188173,-480.30213703,0.00059452,120]
[342810687,1732143188183,-500.0,0.00059452,120]
[342810688,1732143188193,-3361.2,0.00059452,120]
[342810689,1732143188203,-1185.33,0.00059452,120]
[342810690,1732143188213,-633.81,0.00059452,120]
[342810691,1732143188223,-838.48,0.00059452,120]
[342810692,1732143188232,-1382.6,0.00059452,120]
[342810693,1732143188241,-2198.56,0.00059452,120]
[342810694,1732143188251,-500.0,0.00059452,120]
[342810695,1732143188261,-500.0,0.00059452,120]
[342810696,1732143188270,-658.16,0.00059452,120]
[342810697,1732143188280,-581.06,0.00059452,120]
[342810698,1732143188289,-500.0,0.00059452,120]
[342810699,1732143188299,-843.03,0.00059452,120]
[342810700,1732143188308,-665.72,0.00059452,120]
[342810701,1732143188318,-789.82,0.00059452,120]
[342810702,1732143188327,-660.24,0.00059452,120]
[342810703,1732143188337,-500.0,0.00059452,120]
[342810704,1732143188347,-504.35,0.00059452,120]
[342810705,1732143188357,-2411.2,0.00059452,120]
[342810706,1732143188367,-773.4,0.00059452,120]
[342810707,1732143188377,-3997.56,0.00059452,120]
[342810708,1732143188386,-516.63298289,0.00059452,120]
[342810709,1732143188395,-559.66,0.00059452,120]
[342810710,1732143188405,-1755.1,0.00059452,120]
[342810711,1732143188414,-1021.42,0.00059452,120]
[342810712,1732143188424,-968.59,0.00059452,120]
[342810713,1732143188433,-747.74,0.00059452,120]
[342810714,1732143188443,-650.26,0.00059452,120]
[342810715,1732143188452,-552.66,0.00059452,120]
[342810716,1732143188462,-528.53,0.00059452,120]
[342810717,1732143188472,-661.12,0.00059452,120]
[342810718,1732143188481,-4504.33,0.00059452,120]
[342810719,1732143188490,-1414.7,0.00059452,120]
[342810720,1732143188500,-500.0,0.00059452,120]
[342810721,1732143188510,-1839.1,0.00059452,20]
[342810722,1732143188519,-600.15,0.00059452,120]
[342810723,1732143188528,-639.71,0.00059452,120]
[342810724,1732143188538,-500.0,0.00059452,120]
[342810725,1732143188547,-1685.02,0.00059452,120]
[342810726,1732143188556,-500.0,0.00059452,120]
[342810727,1732143188566,-643.92,0.00059452,120]
[342810728,1732143188575,-503.41,0.00059452,120]
[342810729,1732143188585,-500.0,0.00059452,120]
[342810730,1732143188595,-1838.85,0.00059452,120]
[342810731,1732143188604,-777.36,0.00059452,120]
[342810732,1732143188614,-1088.52,0.00059452,120]
[342810733,1732143188624,-3963.88,0.00059452,120]
[342810734,1732143188633,-508.93,0.00059452,120]
[342810735,1732143188643,-500.0,0.00059452,120]
[342810736,1732143188653,-522.18,0.00059452,120]
[342810737,1732143188662,-674.72,0.00059452,120]
[342810738,1732143188671,-1573.1,0.00059452,120]
[342810739,1732143188686,-1344.45,0.00059452,120]
[342810740,1732143188695,-695.34,0.00059452,120]
[342810741,1732143188705,-5030.76,0.00059452,120]
[342810742,1732143188714,-993.23,0.00059452,120]
[342810743,1732143188724,-530.39,0.00059452,120]
[342810744,1732143188734,-1007.71,0.00059452,120]
[342810745,1732143188747,-1508.05,0.00059452,120]
[342810746,1732143188756,-845.57,0.00059452,120]
[342810747,1732143188765,-500.0,0.00059452,120]
[342810748,1732143188774,-1000.0,0.00059452,30]
[342810749,1732143188783,-1949.27,0.00059452,120]
[342810750,1732143188793,-635.4,0.00059452,120]
[342810751,1732143188803,-3671.8,0.00059452,120]
[342810752,1732143188813,-873.15,0.00059452,120]
[342810753,1732143188822,-1275.78,0.00059452,120]
[342810754,1732143188831,-500.0,0.00059452,120]
[342810755,1732143188841,-1300.6,0.00059452,120]
[342810756,1732143188850,-1078.43,0.00059452,120]
[342810757,1732143188859,-729.83,0.00059452,120]
[342810758,1732143188869,-1015.57,0.00059452,120]
[342810759,1732143188878,-562.04,0.00059452,120]
[342810760,1732143188887,-2222.66,0.00059452,120]
[342810761,1732143188896,-2596.1,0.00059452,120]
[342810762,1732143188906,-1080.64,0.00059452,120]
[342810763,1732143188917,-852.14,0.00059452,120]
[342810764,1732143188928,-569.32,0.00059452,120]
[342810765,1732143188937,-509.24,0.00059452,120]
[342810766,1732143188947,-500.0,0.00059452,120]
[342810767,1732143188956,-700.0,0.00059452,120]
[342810768,1732143188967,-928.5,0.00059452,120]
[342810769,1732143188977,-1806.6,0.00059452,120]
[342810770,1732143188991,-548.92263884,0.00059452,120]
[342810771,1732143189001,-1129.79,0.00059452,120]
[342810772,1732143189011,-500.0,0.00059452,120]
[342810773,1732143189020,-2425.19,0.00059452,120]
[342810774,1732143189030,-625.0,0.00059452,120]
[342810775,1732143189039,-583.30252132,0.00059452,120]
[342810776,1732143189048,-1018.93,0.00059452,120]
[342810777,1732143189058,-2073.72,0.00059452,120]
[342810778,1732143189068,-1011.93,0.00059452,120]
[342810779,1732143189077,-1257.41,0.00059452,120]
[342810780,1732143189086,-1328.54,0.00059452,120]
[342810781,1732143189095,-893.2,0.00059452,120]
[342810782,1732143189105,-878.56,0.00059452,120]
[342810783,1732143189115,-1954.12,0.00059452,120]
[342810784,1732143189124,-1107.33,0.00059452,120]
[342810785,1732143189133,-5394.68,0.00059452,120]
[342810786,1732143189143,-500.0,0.00059452,120]
[342810787,1732143189153,-965.73,0.00059452,120]
[342810788,1732143189163,-500.0,0.00059452,120]
[342810789,1732143189174,-543.1,0.00059452,120]
[342810790,1732143189184,-1317.76,0.00059452,120]
[342810791,1732143189194,-594.46,0.00059452,120]
[342810792,1732143189204,-1617.12,0.00059452,120]
[342810793,1732143189214,-657.08,0.00059452,120]
[342810794,1732143189224,-628.07,0.00059452,120]
[342810795,1732143189238,-4865.56,0.00059452,120]
[342810796,1732143189248,-569.89027364,0.00059452,120]
[342810797,1732143189259,-1510.86,0.00059452,120]
[342810798,1732143189269,-2529.98,0.00059452,120]
[342810799,1732143189278,-635.24,0.00059452,120]
[342810800,1732143189288,-750.97,0.00059452,120]
[342810801,1732143189297,-1761.11,0.00059452,120]
[342810802,1732143189306,-624.76,0.00059452,120]
[342810803,1732143189315,-46265.17,0.00059452,120]
[342810804,1732143189325,-500.0,0.00059452,120]
[342810805,1732143189333,-880.93,0.00059452,120]
[342810806,1732143189343,-644.52,0.00059452,120]
[342810807,1732143189354,-500.0,0.00059452,120]
[342810808,1732143189364,-4390.12,0.00059452,120]
[342810809,1732143189373,-3641.91,0.00059452,120]
[342810810,1732143189382,-397.00867521,0.00059452,120]
[342810811,1732143189391,-2046.77,0.00059452,120]
[342810812,1732143189401,-519.31,0.00059452,120]
[342810813,1732143189410,-1582.94,0.00059452,120]
[342810814,1732143189419,-1566.08,0.00059452,120]
[342810815,1732143189429,-1540.18,0.00059452,120]
[342810816,1732143189438,-500.0,0.00059452,120]
[342810817,1732143189447,-32182.96,0.00059452,120]
[342810818,1732143189457,-2395.44,0.00059452,120]
[342810819,1732143189467,-500.0,0.00059452,120]
[342810820,1732143189476,-774.88,0.00059452,120]
[342810821,1732143189487,-500.0,0.00059452,120]
[342810822,1732143189496,-500.0,0.00059452,120]
[342810823,1732143189505,-3018.97,0.00059452,120]
[342810824,1732143189513,-1221.56,0.00059452,120]
[342810825,1732143189523,-949.33,0.00059452,120]
[342810826,1732143189531,-500.0,0.00059452,120]
[342810827,1732143189540,-512.47,0.00059452,120]
[342810828,1732143189549,-975.73,0.00059452,120]
[342810829,1732143189559,-1680.87,0.00059452,120]
[342810830,1732143189568,-2068.97,0.00059452,120]
[342810831,1732143189578,-509.92,0.00059452,120]
[342810832,1732143189587,-2386.08,0.00059452,120]
[342810833,1732143189599,-2587.78,0.00059452,120]
[342810834,1732143189608,-1481.97,0.00059452,120]
[342810835,1732143189617,-500.0,0.00059452,120]
[342810836,1732143189626,-1478.74,0.00059452,120]
[342810837,1732143189635,-500.0,0.00059452,120]
[342810838,1732143189644,-580.13,0.00059452,120]
[342810839,1732143189653,-1753.89,0.00059452,120]
[342810840,1732143189662,-816.51,0.00059452,120]
[342810841,1732143189672,-10880.09,0.00059452,120]
[342810842,1732143189681,-2245.37,0.00059452,120]
[342810843,1732143189692,-3622.31,0.00059452,120]
[342810844,1732143189701,-502.6,0.00059452,120]
[342810845,1732143189711,-500.0,0.00059452,120]
[342810846,1732143189722,-1317.84,0.00059452,120]
[342810847,1732143189733,-1518.89,0.00059452,90]
[342810848,1732143189742,-1643.31,0.00059452,120]
[342810849,1732143189750,-1298.63,0.00059452,120]
[342810850,1732143189759,-943.47,0.00059452,120]
[342810851,1732143189768,-500.0,0.00059452,120]
[342810852,1732143189778,-1649.32,0.00059452,120]
[342810853,1732143189787,-550.87,0.00059452,120]
[342810854,1732143189797,-5640.48,0.00059452,120]
[342810855,1732143189807,-2158.9,0.00059452,120]
[342810856,1732143189817,-1165.26,0.00059452,120]
[342810857,1732143189825,-1244.51,0.00059452,120]
[342810858,1732143189835,-500.0,0.00059452,120]
[342810859,1732143189844,-500.0,0.00059452,120]
[342810860,1732143189854,-9870.91,0.00059452,120]
[342810861,1732143189863,-1110.14,0.00059452,120]
[342810862,1732143189874,-986.78,0.00059452,120]
[342810863,1732143189884,-567.02,0.00059452,120]
[342810864,1732143189894,-651.9,0.00059452,120]
[342810865,1732143189905,-500.0,0.00059452,120]
[342810866,1732143189915,-3368.96,0.00059452,120]
[342810867,1732143189930,-6243.58,0.00059452,120]
[342810868,1732143189941,-1021.75,0.00059452,120]
[342810869,1732143189951,-1221.81,0.00059452,120]
[342810870,1732143189961,-1378.96,0.00059452,120]
[342810871,1732143189972,-1402.48,0.00059452,120]
[342810872,1732143189982,-1098.99,0.00059452,7]
[342810873,1732143189993,-2324.89,0.00059452,120]
[342810874,1732143190002,-500.0,0.00059452,120]
[342810875,1732143190012,-3357.52,0.00059452,120]
[342810876,1732143190021,-631.52,0.00059452,120]
[342810877,1732143190031,-1503.83,0.00059452,120]
[342810878,1732143190040,-610.46,0.00059452,120]
[342810879,1732143190049,-676.3,0.00059452,120]
[342810880,1732143190058,-4485.14,0.00059452,120]
[342810881,1732143190068,-1449.22,0.00059452,120]
[342810882,1732143190077,-1005.77,0.00059452,120]
[342810883,1732143190087,-802.14,0.00059452,120]
[342810884,1732143190096,-62267.29,0.00059452,5]
[342810885,1732143190105,-1000.0,0.00059452,120]
[342810886,1732143190114,-1200.11,0.00059452,120]
[342810887,1732143190123,-4633.73,0.00059452,120]
[342810888,1732143190132,-500.0,0.00059452,120]
[342810889,1732143190140,-1462.06,0.00059452,120]
[342810890,1732143190149,-1071.61,0.00059452,120]
[342810891,1732143190158,-1246.53,0.00059452,120]
[342810892,1732143190167,-665.76,0.00059452,120]
[342810893,1732143190177,-1619.4,0.00059452,120]
[342810894,1732143190185,-4155.63,0.00059452,120]
[342810895,1732143190195,-534.16,0.00059452,120]
[342810896,1732143190204,-500.0,0.00059452,120]
[342810897,1732143190213,-716.03,0.00059452,120]
[342810898,1732143190222,-710.7,0.00059452,120]
[342810899,1732143190232,-1328.15,0.00059452,120]
[342810900,1732143190241,-3842.23,0.00059452,120]
[342810901,1732143190251,-1770.4,0.00059452,120]
[342810902,1732143190260,-1828.16,0.00059452,120]
[342810903,1732143190269,-734.2,0.00059452,120]
[342810904,1732143190279,-500.0,0.00059452,120]
[342810905,1732143190288,-4113.57,0.00059452,120]
[342810906,1732143190297,-3361.09,0.00059452,120]
[342810907,1732143190306,-2336.41,0.00059452,120]
[342810908,1732143190315,-914.26,0.00059452,120]
[342810909,1732143190325,-2227.59,0.00059452,120]
[342810910,1732143190334,-1225.66,0.00059452,120]
[342810911,1732143190343,-1199.34,0.00059452,120]
[342810912,1732143190352,-500.0,0.00059452,120]
[342810913,1732143190361,-818.4,0.00059452,120]
[342810914,1732143190370,-945.67,0.00059452,120]
[342810915,1732143190379,-4656.57,0.00059452,120]
[342810916,1732143190389,-656.2,0.00059452,120]
[342810917,1732143190399,-1601.15,0.00059452,120]
[342810918,1732143190408,-2590.51,0.00059452,120]
[342810919,1732143190417,-617.4,0.00059452,120]
[342810920,1732143190426,-1087.48,0.00059452,120]
[342810921,1732143190435,-500.0,0.00059452,120]
[342810922,1732143190448,-1021.22,0.00059452,120]
[342810923,1732143190460,-530.21,0.00059452,120]
[342810924,1732143190471,-4078.12,0.00059452,120]
[342810925,1732143190480,-609.85,0.00059452,120]
[342810926,1732143190489,-1271.08,0.00059452,120]
[342810927,1732143190499,-630.13,0.00059452,120]
[342810928,1732143190508,-1053.42,0.00059452,120]
[342810929,1732143190517,-868.75,0.00059452,120]
[342810930,1732143190526,-10737.37,0.00059452,21]
[342810931,1732143190535,-3054.48,0.00059452,120]
[342810932,1732143190544,-772.0,0.00059452,120]
[342810933,1732143190554,-790.82,0.00059452,120]
[342810934,1732143190563,-1615.7,0.00059452,120]
[342810935,1732143190572,-2780.77,0.00059452,120]
[342810936,1732143190581,-3170.06,0.00059452,120]
[342810937,1732143190591,-530.51,0.00059452,120]
[342810938,1732143190600,-814.28,0.00059452,120]
[342810939,1732143190609,-500.0,0.00059452,120]
[342810940,1732143190619,-500.0,0.00059452,120]
[342810941,1732143190628,-1053.94,0.00059452,120]
[342810942,1732143190637,-832.21,0.00059452,120]
[342810943,1732143190646,-559.12,0.00059452,120]
[342810944,1732143190656,-962.23,0.00059452,120]
[342810945,1732143190667,-4610.65,0.00059452,120]
[342810946,1732143190678,-630.95,0.00059452,120]
[342810947,1732143190688,-7093.52,0.00059452,120]
[342810948,1732143190697,-1497.99,0.00059452,120]
[342810949,1732143190707,-3030.53,0.00059452,120]
[342810950,1732143190717,-2002.76,0.00059452,120]
[342810951,1732143190727,-4996.62,0.00059452,120]
[342810952,1732143190737,-1038.47,0.00059452,120]
[342810953,1732143190746,-3755.03,0.00059452,120]
[342810954,1732143190755,-500.0,0.00059452,120]
[342810955,1732143190764,-500.33,0.00059452,120]
[342810956,1732143190773,-619.43,0.00059452,120]
[342810957,1732143190784,-1395.84,0.00059452,120]
[342810958,1732143190794,-6717.87,0.00059452,120]
[342810959,1732143190803,-4210.05,0.00059452,120]
[342810960,1732143190812,-4619.32,0.00059452,120]
[342810961,1732143190822,-2125.56,0.00059452,120]
[342810962,1732143190832,-1522.48,0.00059452,120]
[342810963,1732143190842,-500.0,0.00059452,120]
[342810964,1732143190851,-333.75490627,0.00059452,120]
[342810965,1732143190861,-2913.49,0.00059452,120]
[342810966,1732143190870,-6408.58,0.00059452,60]
[342810967,1732143190879,-500.0,0.00059452,120]
[342810968,1732143190888,-8536.13,0.00059452,120]
[342810969,1732143190897,-931.52,0.00059452,120]
[342810970,1732143190907,-5185.83,0.00059452,120]
[342810971,1732143190918,-873.24,0.00059452,120]
[342810972,1732143190928,-1838.8,0.00059452,120]
[342810973,1732143190937,-1525.45,0.00059452,120]
[342810974,1732143190946,-1373.0,0.00059452,120]
[342810975,1732143190956,-1659.86,0.00059452,120]
[342810976,1732143190965,-5907.77,0.00059452,120]
[342810977,1732143190974,-647.02,0.00059452,120]
[342810978,1732143190983,-1210.69,0.00059452,120]
[342810979,1732143190993,-526.64,0.00059452,120]
[342810980,1732143191002,-12504.89,0.00059452,120]
[342810981,1732143191012,-2076.98,0.00059452,120]
[342810982,1732143191022,-1181.36,0.00059452,120]
[342810983,1732143191032,-677.21,0.00059452,120]
[342810984,1732143191041,-2434.04,0.00059452,120]
[342810985,1732143191051,-1109.03,0.00059452,120]
[342810986,1732143191060,-1099.32,0.00059452,120]
[342810987,1732143191070,-651.95,0.00059452,120]
[342810988,1732143191079,-4681.73,0.00059452,120]
[342810989,1732143191089,-757.95,0.00059452,120]
[342810990,1732143191098,-986.66,0.00059452,120]
[342810991,1732143191109,-880.48,0.00059452,120]
[342810992,1732143191119,-1502.22,0.00059452,120]
[342810993,1732143191128,-1166.87,0.00059452,120]
[342810994,1732143191138,-1450.31,0.00059452,120]
[342810995,1732143191149,-2144.4,0.00059452,120]
[342810996,1732143191159,-548.14,0.00059452,120]
[342810997,1732143191169,-1032.14,0.00059452,120]
[342810998,1732143191179,-14474.38,0.00059452,120]
[342810999,1732143191190,-16729.96,0.00059452,120]
[342811000,1732143191200,-500.0,0.00059452,120]
[342811001,1732143191210,-533.88,0.00059452,120]
[342811002,1732143191220,-2375.8,0.00059452,120]
[342811003,1732143191230,-726.78,0.00059452,120]
[342811004,1732143191241,-3517.73,0.00059452,120]
[342811005,1732143191251,-500.0,0.00059452,120]
[342811006,1732143191261,-2949.54,0.00059452,120]
[342811007,1732143191271,-680.36,0.00059452,120]
[342811008,1732143191281,-629.45,0.00059452,120]
[342811009,1732143191291,-500.0,0.00059452,120]
[342811010,1732143191301,-1835.32,0.00059452,120]
[342811011,1732143191311,-567.38,0.00059452,120]
[342811012,1732143191321,-1270.02,0.00059452,120]
[342811013,1732143191331,-1077.92,0.00059452,120]
[342811014,1732143191342,-1080.78,0.00059452,120]
[342811015,1732143191352,-500.0,0.00059452,120]